bitfinex/quotes_SOLUSD_20250622
["timestamp","ask_amount","ask_price","bid_price","bid_amount"]
[1750616639807,6.0554,130.52,130.48,18.83523625]
[1750616640001,1.5341,130.54,130.45,26.31536268]
[1750616640002,1.5341,130.54,130.5,18.64964886]
[1750616640328,0.73,130.55,130.5,18.83523625]
[1750616640907,26.0,130.53,130.43,18.64964886]
[1750616641208,0.73,130.52,130.44,18.64964886]
[1750616641458,26.73,130.47,130.36,8.15061562]
[1750616641599,26.73,130.47,130.39,18.83523625]
[1750616642043,26.73,130.47,130.38,26.77547688]
[1750616642216,26.73,130.47,130.39,18.64964886]
[1750616642423,0.73,130.46,130.39,18.64964886]
[1750616642729,0.73,130.45,130.38,26.77547688]
[1750616642932,0.73,130.45,130.38,45.61071313]
[1750616643238,0.73,130.45,130.39,18.64964886]
[1750616644313,26.0,130.46,130.39,37.48488511]
[1750616644815,26.0,130.46,130.41,18.64964886]
[1750616645040,26.0,130.46,130.41,37.48488511]
[1750616645201,26.0,130.46,130.42,18.83523625]
[1750616645408,26.0,130.47,130.43,37.48488511]
[1750616646111,26.0,130.47,130.43,18.64964886]
[1750616646316,6.111,130.5,130.43,37.48488511]
[1750616646514,26.0,130.49,130.43,37.48488511]
[1750616647018,26.0,130.49,130.43,18.64964886]
[1750616647402,26.0,130.49,130.43,18.83523625]
[1750616647610,26.0,130.49,130.42,37.48488511]
[1750616648841,26.73,130.49,130.42,37.48488511]
[1750616649027,26.73,130.49,130.42,18.64964886]
[1750616649632,26.73,130.49,130.43,18.64964886]
[1750616650937,26.73,130.49,130.43,37.48488511]
[1750616651339,26.0,130.49,130.43,37.48488511]
[1750616651732,6.111,130.5,130.47,18.64964886]
[1750616651934,2.332,130.55,130.47,18.64964886]
[1750616651935,6.0448,130.54,130.47,37.48488511]
[1750616652242,6.0448,130.54,130.49,18.64964886]
[1750616652537,32.0448,130.54,130.49,18.64964886]
[1750616653831,32.0448,130.54,130.46,18.64964886]
[1750616653832,0.73,130.5,130.46,18.64964886]
[1750616654027,0.73,130.5,130.45,18.64964886]
[1750616654619,26.0,130.51,130.45,37.48488511]
[1750616654916,26.0,130.51,130.45,18.64964886]
[1750616655436,26.0,130.51,130.45,45.15062328]
[1750616657552,26.0,130.51,130.46,18.83523625]
[1750616658088,26.0,130.51,130.45,45.15062328]
[1750616659976,6.0448,130.54,130.48,18.83523625]
[1750616660163,6.0448,130.54,130.5,37.48488511]
[1750616660370,6.0448,130.54,130.5,18.64964886]
[1750616661890,6.0448,130.54,130.5,26.31241885]
[1750616663491,6.0448,130.54,130.5,45.1476551]
[1750616663656,0.73,130.58,130.52,18.83523625]
[1750616663657,6.7379,130.58,130.52,18.83523625]
[1750616664161,32.7379,130.58,130.52,18.83523625]
[1750616664780,32.7379,130.58,130.54,18.64964886]
[1750616665496,6.7379,130.58,130.52,37.48488511]
[1750616665683,6.7379,130.58,130.52,18.64964886]
[1750616667593,6.7379,130.58,130.53,18.64964886]
[1750616667792,6.7379,130.58,130.53,26.31067572]
[1750616668004,6.0079,130.58,130.53,45.14591197]
[1750616668303,6.1649,130.62,130.58,18.64964886]
[1750616668480,0.7,130.61,130.58,18.64964886]
[1750616668660,0.7,130.61,130.56,18.64964886]
[1750616669898,6.1649,130.62,130.56,45.14418837]
[1750616670107,6.1649,130.62,130.56,37.48488511]
[1750616670800,6.8649,130.62,130.54,18.64964886]
[1750616671001,6.8649,130.62,130.54,37.48488511]
[1750616671219,6.8649,130.62,130.54,45.14525282]
[1750616671913,6.8649,130.62,130.55,18.83523625]
[1750616672115,6.8649,130.62,130.56,18.64964886]
[1750616672284,26.0,130.61,130.55,18.64964886]
[1750616673481,26.0,130.61,130.55,37.48488511]
[1750616674311,26.0,130.61,130.55,18.64964886]
[1750616674665,26.0,130.61,130.54,37.48488511]
[1750616675708,26.0,130.61,130.55,7.65990042]
[1750616676309,26.0,130.61,130.54,26.31008615]
[1750616676687,26.0,130.61,130.54,45.1453224]
[1750616677700,6.8649,130.62,130.54,45.1453224]
[1750616677701,6.1649,130.62,130.54,26.31008615]
[1750616677909,6.1649,130.62,130.55,18.64964886]
[1750616678091,6.1649,130.62,130.56,18.64964886]
[1750616678294,6.1649,130.62,130.54,26.49567354]
[1750616678295,32.8649,130.62,130.55,18.64964886]
[1750616678731,26.7,130.59,130.54,18.64964886]
[1750616679235,0.7,130.6,130.53,18.64964886]
[1750616679410,5.67566104,130.59,130.53,18.64964886]
[1750616679612,5.67566104,130.58,130.56,18.64964886]
[1750616679920,0.7,130.6,130.57,18.64964886]
[1750616680124,5.67527058,130.59,130.53,26.31050418]
[1750616680434,6.37527058,130.58,130.53,26.31050418]
[1750616680735,0.7,130.58,130.53,26.31050418]
[1750616681106,5.68000127,130.57,130.53,26.31050418]
[1750616681339,0.7,130.58,130.53,26.31050418]
[1750616681545,5.68126457,130.57,130.53,26.31050418]
[1750616681708,0.7,130.58,130.53,26.31050418]
[1750616682231,5.68231482,130.57,130.53,18.64964886]
[1750616682441,27.56,130.58,130.53,18.64964886]
[1750616682737,0.7,130.56,130.53,18.64964886]
[1750616683623,26.7,130.57,130.53,18.64964886]
[1750616683809,5.68256482,130.56,130.53,18.64964886]
[1750616684010,0.7,130.57,130.53,18.64964886]
[1750616684232,5.68265275,130.56,130.53,18.64964886]
[1750616684439,2.26,130.58,130.53,26.31071307]
[1750616684599,5.68254636,130.57,130.53,26.31071307]
[1750616684803,5.68265984,130.56,130.53,18.64964886]
[1750616685017,0.7,130.57,130.53,18.64964886]
[1750616685215,5.68259328,130.56,130.53,18.64964886]
[1750616685442,0.7,130.57,130.53,18.64964886]
[1750616685604,5.68316797,130.56,130.53,18.64964886]
[1750616685804,0.7,130.57,130.53,18.64964886]
[1750616686709,26.0,130.56,130.53,26.31070792]
[1750616686907,26.0,130.57,130.53,26.31070792]
[1750616688122,0.7,130.57,130.53,18.64964886]
[1750616688309,26.7,130.57,130.53,18.64964886]
[1750616688709,0.7,130.56,130.53,18.64964886]
[1750616688910,6.6022,130.56,130.53,18.64964886]
[1750616689215,0.7,130.55,130.53,18.64964886]
[1750616689631,32.6022,130.56,130.53,18.64964886]
[1750616689837,33.3022,130.56,130.53,18.64964886]
[1750616691940,0.7,130.55,130.53,18.64964886]
[1750616693233,0.7,130.53,130.5,18.64964886]
[1750616694344,26.7,130.53,130.5,18.64964886]
[1750616695222,0.7,130.52,130.48,18.64964886]
[1750616695470,26.0,130.53,130.5,19.12964886]
[1750616695666,26.0,130.53,130.5,37.96488511]
[1750616695973,6.6022,130.56,130.5,37.96488511]
[1750616696127,6.6022,130.56,130.5,70.86488511]
[1750616696326,26.0,130.53,130.5,70.86488511]
[1750616697145,6.6022,130.56,130.52,18.64964886]
[1750616697650,26.0,130.53,130.52,18.64964886]
[1750616699532,7.3022,130.56,130.52,18.64964886]
[1750616699933,7.3022,130.56,130.52,7.66165311]
[1750616700134,6.6022,130.56,130.52,7.66165311]
[1750616701559,26.7,130.57,130.51,7.6622481]
[1750616701863,0.7,130.56,130.52,18.64964886]
[1750616702361,26.0,130.56,130.52,18.64964886]
[1750616702539,0.7,130.55,130.52,18.64964886]
[1750616703459,0.7,130.56,130.52,18.64964886]
[1750616705954,26.0,130.57,130.52,18.64964886]
[1750616706159,0.7,130.56,130.52,18.64964886]
[1750616706860,26.7,130.57,130.52,26.31125841]
[1750616707564,155.4147,130.6,130.53,12.34286545]
[1750616707774,26.0,130.59,130.53,12.34286545]
[1750616708647,26.0,130.59,130.55,18.64964886]
[1750616708843,26.0,130.59,130.54,18.64964886]
[1750616709163,26.0,130.57,130.54,18.64964886]
[1750616709346,26.7,130.57,130.52,18.64964886]
[1750616711665,26.0,130.57,130.52,18.64964886]
[1750616711846,26.7,130.57,130.52,18.64964886]
[1750616712751,0.7,130.56,130.52,18.64964886]
[1750616713855,6.6147,130.6,130.54,37.93030762]
[1750616714062,148.1,130.63,130.58,18.64964886]
[1750616714063,154.1886,130.63,130.58,18.64964886]
[1750616714373,154.8886,130.63,130.58,18.64964886]
[1750616714549,154.8886,130.63,130.57,37.45030762]
[1750616714743,154.8886,130.63,130.57,18.64964886]
[1750616714944,0.7,130.59,130.56,18.64964886]
[1750616715262,26.7,130.59,130.54,18.64964886]
[1750616715461,26.0,130.59,130.54,18.64964886]
[1750616716066,26.7,130.59,130.54,18.64964886]
[1750616716462,0.7,130.59,130.54,18.64964886]
[1750616716665,26.7,130.59,130.54,18.64964886]
[1750616716841,26.0,130.59,130.54,18.64964886]
[1750616717047,0.7,130.58,130.54,18.64964886]
[1750616720248,27.6309,130.59,130.54,18.64964886]
[1750616720454,0.7,130.57,130.54,18.64964886]
[1750616720763,1.6309,130.59,130.54,18.64964886]
[1750616721147,0.7,130.58,130.54,18.64964886]
[1750616721390,0.7,130.56,130.54,18.64964886]
[1750616721546,32.4314,130.57,130.54,18.64964886]
[1750616721745,0.7,130.56,130.51,18.64964886]
[1750616722048,32.4314,130.57,130.51,18.64964886]
[1750616722253,26.0,130.57,130.54,18.64964886]
[1750616724265,2.3309,130.59,130.54,18.64964886]
[1750616724469,26.0,130.6,130.54,37.93030762]
[1750616724689,26.0,130.6,130.54,70.81030762]
[1750616725175,26.71,130.58,130.52,18.64964886]
[1750616725384,26.71,130.58,130.52,51.52964886]
[1750616726893,26.0,130.52,130.51,18.64964886]
[1750616727096,26.71,130.52,130.51,18.64964886]
[1750616727380,26.71,130.52,130.47,18.64964886]
[1750616727559,26.0,130.52,130.46,7.66]
[1750616727970,26.0,130.51,130.46,7.66]
[1750616728192,26.71,130.5,130.42,1.5775]
[1750616728370,0.71,130.5,130.43,18.64964886]
[1750616728570,26.71,130.5,130.43,18.64964886]
[1750616729392,0.71,130.5,130.43,18.64964886]
[1750616729596,26.71,130.5,130.43,18.64964886]
[1750616730388,26.71,130.5,130.42,18.64964886]
[1750616730389,6.9795,130.49,130.42,18.64964886]
[1750616730575,8.5364,130.49,130.42,18.64964886]
[1750616731991,26.0,130.46,130.42,18.64964886]
[1750616732788,7.8264,130.49,130.42,18.64964886]
[1750616732978,26.0,130.49,130.45,18.64964886]
[1750616733765,26.0,130.49,130.44,19.28065876]
[1750616733996,6.9795,130.52,130.45,18.64964886]
[1750616734373,26.0,130.51,130.45,18.80065876]
[1750616734597,26.0,130.51,130.47,18.64964886]
[1750616734767,6.2695,130.52,130.47,37.93030762]
[1750616734967,1.5569,130.53,130.47,26.30964886]
[1750616735190,26.0,130.52,130.47,26.30964886]
[1750616735395,1.5569,130.53,130.47,26.30964886]
[1750616735588,26.0,130.52,130.47,45.11030762]
[1750616736087,1.5569,130.53,130.47,45.11030762]
[1750616736299,26.0,130.52,130.47,45.11030762]
[1750616736508,0.71,130.51,130.47,33.9740107]
[1750616736670,26.71,130.52,130.47,33.9740107]
[1750616736988,0.71,130.51,130.47,33.9740107]
[1750616737599,26.71,130.51,130.47,33.9740107]
[1750616737803,26.0,130.51,130.47,26.30964886]
[1750616737983,0.71,130.5,130.47,26.30964886]
[1750616739692,0.71,130.5,130.47,33.97423235]
[1750616739895,26.0,130.51,130.47,33.97423235]
[1750616742228,0.71,130.5,130.47,26.30964886]
[1750616744814,26.0,130.49,130.47,26.30964886]
[1750616745608,26.0,130.49,130.47,33.97421202]
[1750616745909,174.81,130.52,130.47,33.97421202]
[1750616746420,148.81,130.52,130.47,33.97421202]
[1750616746787,148.1,130.52,130.47,52.77487078]
[1750616746991,148.1,130.52,130.47,33.97421202]
[1750616747187,148.1,130.52,130.47,52.77487078]
[1750616749905,148.1,130.52,130.47,33.97421202]
[1750616750593,148.81,130.52,130.47,33.97421202]
[1750616751719,0.71,130.51,130.47,33.97421202]
[1750616752291,148.1,130.52,130.47,26.30964886]
[1750616753306,0.69,130.51,130.47,26.30964886]
[1750616753896,148.1,130.52,130.47,26.30964886]
[1750616754099,26.0,130.51,130.47,26.30964886]
[1750616754299,26.0,130.51,130.45,7.66560835]
[1750616754300,0.69,130.5,130.45,18.64964886]
[1750616755303,0.69,130.5,130.45,26.31542118]
[1750616755496,26.0,130.51,130.45,26.31542118]
[1750616756728,0.69,130.5,130.45,26.31542118]
[1750616756924,26.0,130.51,130.45,26.31542118]
[1750616757241,26.69,130.51,130.45,26.31542118]
[1750616758207,26.0,130.51,130.45,38.66502582]
[1750616758413,26.69,130.51,130.45,26.31542118]
[1750616761325,0.69,130.48,130.45,18.64964886]
[1750616762529,0.69,130.48,130.45,7.66560754]
[1750616763026,26.0,130.49,130.45,7.66560754]
[1750616763431,26.0,130.49,130.45,18.64964886]
[1750616764507,26.69,130.49,130.45,18.64964886]
[1750616764703,26.69,130.49,130.44,18.64964886]
[1750616764927,0.69,130.51,130.45,12.34960464]
[1750616765325,0.69,130.51,130.44,31.4792535]
[1750616765520,0.69,130.51,130.46,18.64964886]
[1750616765720,0.69,130.51,130.46,19.12964886]
[1750616766703,174.1,130.52,130.46,31.4792535]
[1750616766905,174.1,130.52,130.48,18.64964886]
[1750616767538,174.1,130.52,130.48,26.31322936]
[1750616767906,174.79,130.52,130.48,26.31322936]
[1750616769837,148.1,130.52,130.48,26.31322936]
[1750616770417,148.79,130.52,130.48,26.31322936]
[1750616771831,148.1,130.52,130.5,18.64964886]
[1750616772830,148.79,130.52,130.49,18.64964886]
[1750616773036,148.79,130.52,130.48,7.62]
[1750616773037,26.0,130.52,130.48,7.62]
[1750616773343,0.69,130.52,130.49,18.64964886]
[1750616778734,0.69,130.52,130.49,26.31298686]
[1750616779952,0.69,130.52,130.49,18.64964886]
[1750616782448,150.3144,130.54,130.49,26.31303506]
[1750616782746,148.81,130.54,130.49,26.79303506]
[1750616784530,148.1,130.54,130.49,26.31303506]
[1750616784847,0.71,130.53,130.49,26.31303506]
[1750616787033,0.71,130.53,130.49,18.64964886]
[1750616787229,148.1,130.54,130.49,18.64964886]
[1750616787533,0.71,130.53,130.49,18.64964886]
[1750616788439,148.1,130.54,130.49,18.64964886]
[1750616788948,0.71,130.53,130.49,18.64964886]
[1750616789132,148.1,130.54,130.49,18.64964886]
[1750616790137,0.71,130.53,130.49,18.64964886]
[1750616790844,148.1,130.54,130.49,18.64964886]
[1750616791350,0.71,130.53,130.49,18.64964886]
[1750616791558,0.71,130.53,130.45,18.64964886]
[1750616791855,0.71,130.51,130.45,18.64964886]
[1750616792158,0.71,130.51,130.44,26.31600887]
[1750616792460,0.71,130.51,130.44,38.66561351]
[1750616792751,0.71,130.51,130.44,39.14561351]
[1750616792955,174.1,130.52,130.47,18.64964886]
[1750616793256,174.1,130.52,130.47,19.12964886]
[1750616794558,148.1,130.52,130.49,18.64964886]
[1750616796253,148.81,130.56,130.49,14.01010464]
[1750616796558,0.71,130.59,130.54,18.64964886]
[1750616796744,0.71,130.59,130.54,12.34960464]
[1750616796945,0.71,130.59,130.54,18.64964886]
[1750616797144,174.1,130.6,130.54,18.64964886]
[1750616797345,0.71,130.59,130.52,18.64964886]
[1750616798160,0.71,130.59,130.52,26.3107943]
[1750616798562,0.71,130.56,130.52,18.64964886]
[1750616799734,0.71,130.55,130.52,18.64964886]
[1750616800030,26.71,130.56,130.51,18.64964886]
[1750616800234,26.71,130.56,130.52,7.66166104]
[1750616800433,26.0,130.56,130.53,18.64964886]
[1750616801035,26.71,130.58,130.53,18.64964886]
[1750616801240,26.71,130.58,130.53,19.12964886]
[1750616801549,26.71,130.58,130.53,18.64964886]
[1750616802680,26.71,130.58,130.55,18.64964886]
[1750616802840,148.1,130.59,130.55,18.64964886]
[1750616803842,148.1,130.59,130.55,26.30941854]
[1750616807267,148.81,130.59,130.55,26.30941854]
[1750616810471,148.1,130.59,130.55,26.30941854]
[1750616810856,148.1,130.59,130.55,38.65902318]
[1750616811383,148.1,130.59,130.55,26.30941854]
[1750616812075,148.81,130.59,130.55,26.30941854]
[1750616812575,148.1,130.63,130.57,18.64964886]
[1750616812785,0.74,130.64,130.59,31.4792535]
[1750616813150,148.84,130.66,130.61,18.64964886]
[1750616813486,174.84,130.66,130.61,18.64964886]
[1750616814005,0.74,130.68,130.63,18.64964886]
[1750616814296,148.1,130.69,130.65,18.64964886]
[1750616814498,148.1,130.69,130.65,30.9992535]
[1750616814789,0.74,130.71,130.65,30.9992535]
[1750616815091,0.74,130.71,130.67,18.64964886]
[1750616815591,0.74,130.71,130.65,30.9992535]
[1750616815959,0.74,130.71,130.65,18.64964886]
[1750616816183,26.0,130.7,130.63,18.64964886]
[1750616816485,26.0,130.7,130.62,18.64964886]
[1750616816486,0.74,130.68,130.62,18.64964886]
[1750616816780,0.74,130.68,130.58,7.56]
[1750616816781,26.0,130.64,130.58,7.56]
[1750616816981,26.74,130.64,130.58,7.56]
[1750616817190,0.74,130.63,130.58,7.56]
[1750616817361,26.74,130.64,130.59,18.64964886]
[1750616817567,0.74,130.63,130.59,18.64964886]
[1750616819186,0.74,130.63,130.59,26.3071542]
[1750616819605,0.74,130.63,130.59,18.64964886]
[1750616820389,26.0,130.64,130.59,26.30713028]
[1750616820594,26.74,130.64,130.59,26.30713028]
[1750616822492,26.0,130.64,130.59,38.80673492]
[1750616822806,148.1,130.69,130.64,18.64964886]
[1750616823098,0.74,130.73,130.67,18.64964886]
[1750616823265,0.74,130.78,130.69,18.64964886]
[1750616823469,0.74,130.77,130.69,30.9992535]
[1750616823677,26.74,130.75,130.67,32.66]
[1750616823887,0.74,130.74,130.65,38.65322097]
[1750616824600,0.74,130.74,130.67,18.64964886]
[1750616825089,0.74,130.74,130.67,12.34960464]
[1750616825598,0.74,130.74,130.69,18.64964886]
[1750616825797,0.74,130.74,130.68,18.64964886]
[1750616826291,0.74,130.74,130.68,37.40147806]
[1750616826486,0.74,130.74,130.69,18.7518292]
[1750616827891,0.74,130.74,130.7,18.64964886]
[1750616828396,26.0,130.76,130.67,18.7518292]
[1750616828604,7.273,130.74,130.66,18.64964886]
[1750616828804,0.74,130.73,130.66,18.64964886]
[1750616828989,26.74,130.7,130.63,6.5244]
[1750616829300,26.0,130.7,130.65,18.64964886]
[1750616829692,26.74,130.7,130.65,18.64964886]
[1750616829890,26.0,130.7,130.65,18.64964886]
[1750616830203,0.74,130.69,130.64,18.64964886]
[1750616830704,26.0,130.7,130.63,18.64964886]
[1750616830911,0.74,130.69,130.63,18.64964886]
[1750616834911,148.84,130.69,130.63,18.64964886]
[1750616835491,0.74,130.68,130.63,18.64964886]
[1750616836006,26.74,130.66,130.63,18.64964886]
[1750616837608,26.0,130.66,130.63,18.64964886]
[1750616837798,26.74,130.65,130.63,18.64964886]
[1750616838000,0.74,130.65,130.63,18.64964886]
[1750616838318,26.74,130.64,130.63,18.64964886]
[1750616838691,26.74,130.64,130.59,18.64964886]
[1750616839846,26.0,130.64,130.59,26.30704613]
[1750616840032,148.84,130.67,130.61,18.64964886]
[1750616840319,148.84,130.67,130.61,18.7518292]
[1750616840693,148.1,130.67,130.61,18.7518292]
[1750616841315,148.1,130.67,130.63,37.40147806]
[1750616841899,148.84,130.67,130.62,18.64964886]
[1750616842598,148.84,130.67,130.63,18.7518292]
[1750616842599,148.1,130.67,130.63,18.7518292]
[1750616843314,26.0,130.69,130.65,18.64964886]
[1750616843929,26.69,130.69,130.64,18.64964886]
[1750616844306,26.0,130.69,130.64,18.64964886]
[1750616844601,0.69,130.68,130.64,18.64964886]
[1750616848725,26.0,130.69,130.64,18.64964886]
[1750616848913,0.69,130.68,130.64,18.64964886]
[1750616851117,26.69,130.69,130.64,18.64964886]
[1750616852404,26.0,130.69,130.64,18.64964886]
[1750616852726,0.69,130.68,130.64,18.64964886]
[1750616854707,0.69,130.66,130.64,18.64964886]
[1750616855032,33.0954,130.65,130.59,18.64964886]
[1750616856328,33.0954,130.65,130.59,26.30705989]
[1750616857333,33.0954,130.65,130.59,18.64964886]
[1750616857630,26.0,130.61,130.56,18.64964886]
[1750616857811,26.69,130.61,130.55,7.65966001]
[1750616858013,26.0,130.61,130.56,18.64964886]
[1750616858336,26.69,130.61,130.55,7.65966001]
[1750616858516,0.69,130.6,130.56,18.64964886]
[1750616859114,148.1,130.64,130.58,12.31882599]
[1750616859313,148.1,130.64,130.59,12.31882599]
[1750616859314,26.0,130.63,130.59,12.31882599]
[1750616859519,26.0,130.63,130.58,12.79882599]
[1750616860337,26.69,130.63,130.59,18.64964886]
[1750616861414,148.1,130.64,130.6,18.64964886]
[1750616861621,148.79,130.64,130.6,18.64964886]
[1750616861821,148.79,130.64,130.59,18.64964886]
[1750616862435,148.79,130.64,130.59,7.65754945]
[1750616863123,148.79,130.64,130.6,18.64964886]
[1750616865455,148.1,130.64,130.6,18.64964886]
[1750616865619,6.0457,130.68,130.62,12.31882599]
[1750616865921,1.6302,130.7,130.6,27.63964886]
[1750616865922,1.6302,130.7,130.64,30.96847485]
[1750616866115,1.6302,130.7,130.66,18.64964886]
[1750616866324,2.3202,130.7,130.66,18.64964886]
[1750616866721,2.3202,130.7,130.64,30.96847485]
[1750616867246,2.3202,130.7,130.64,38.62257224]
[1750616868319,2.3202,130.7,130.64,45.06742229]
[1750616868520,2.3202,130.7,130.66,18.64964886]
[1750616868822,1.6302,130.7,130.66,18.64964886]
[1750616869025,6.0457,130.71,130.66,18.64964886]
[1750616869348,6.7357,130.71,130.66,18.64964886]
[1750616869828,6.0457,130.71,130.66,18.64964886]
[1750616870029,6.7357,130.71,130.66,18.64964886]
[1750616872320,6.7357,130.71,130.66,26.30293631]
[1750616872630,6.7357,130.71,130.66,45.06661235]
[1750616873142,6.0457,130.71,130.66,45.06661235]
[1750616874038,6.0457,130.71,130.67,18.76367604]
[1750616874370,26.0,130.72,130.68,26.30173782]
[1750616874861,154.5412,130.74,130.7,18.64964886]
[1750616875822,155.2712,130.74,130.69,18.64964886]
[1750616876526,1.6174,130.76,130.7,37.8933249]
[1750616878142,1.6174,130.76,130.7,45.54390015]
[1750616878539,1.6174,130.76,130.72,18.64964886]
[1750616879264,181.2712,130.77,130.72,18.64964886]
[1750616879423,180.5412,130.77,130.73,18.76367604]
[1750616879631,1.5649,130.8,130.73,18.76367604]
[1750616879632,156.8727,130.8,130.74,18.64964886]
[1750616879829,26.0,130.79,130.74,18.64964886]
[1750616880033,26.73,130.79,130.74,18.64964886]
[1750616880254,26.73,130.79,130.74,18.76367604]
[1750616880445,26.73,130.79,130.75,18.64964886]
[1750616880655,21.73,130.79,130.75,18.64964886]
[1750616882485,21.73,130.79,130.74,26.29837744]
[1750616882685,21.73,130.79,130.75,18.64964886]
[1750616882979,148.1,130.8,130.75,37.4133249]
[1750616883270,7.2078,130.83,130.77,18.76367604]
[1750616883475,7.2078,130.83,130.79,18.64964886]
[1750616883645,7.2078,130.83,130.79,37.4133249]
[1750616884048,149.6649,130.84,130.79,37.4133249]
[1750616884276,148.83,130.84,130.79,37.4133249]
[1750616884481,0.73,130.83,130.79,18.64964886]
[1750616884775,0.73,130.8,130.71,18.64964886]
[1750616884976,0.73,130.8,130.7,59.89478545]
[1750616885273,0.73,130.8,130.71,18.76367604]
[1750616885467,0.73,130.8,130.72,18.64964886]
[1750616885970,0.73,130.8,130.74,18.64964886]
[1750616887459,0.73,130.8,130.74,7.64874408]
[1750616888467,0.73,130.8,130.72,37.4133249]
[1750616888468,0.73,130.8,130.73,7.64911632]
[1750616889379,0.73,130.8,130.74,18.64964886]
[1750616889760,0.73,130.8,130.73,18.64964886]
[1750616890872,0.73,130.78,130.73,18.64964886]
[1750616891077,26.0,130.77,130.73,18.64964886]
[1750616891373,26.0,130.77,130.72,18.64964886]
[1750616891577,26.73,130.77,130.72,18.64964886]
[1750616892982,0.73,130.76,130.71,18.64964886]
[1750616893185,0.73,130.76,130.71,26.30014344]
[1750616894975,26.0,130.77,130.71,26.78014344]
[1750616895180,26.0,130.77,130.72,18.76367604]
[1750616895392,0.73,130.79,130.73,37.8933249]
[1750616895572,26.73,130.79,130.73,37.8933249]
[1750616895976,26.73,130.79,130.72,37.4133249]
[1750616896288,26.73,130.79,130.73,18.64964886]
[1750616898686,26.73,130.79,130.74,18.64964886]
[1750616899076,26.73,130.79,130.73,18.64964886]
[1750616899494,2.3755,130.81,130.77,18.64964886]
[1750616899800,2.3755,130.81,130.77,30.94948535]
[1750616899801,1.6455,130.81,130.77,30.94948535]
[1750616900163,1.6455,130.81,130.76,30.94948535]
[1750616900367,1.6455,130.81,130.76,31.42948535]
[1750616900991,1.6455,130.81,130.76,39.07671234]
[1750616901171,1.6455,130.81,130.74,7.64871757]
[1750616901377,0.73,130.8,130.75,18.64964886]
[1750616902287,0.7,130.78,130.74,18.64964886]
[1750616904490,18.74094637,130.77,130.74,18.64964886]
[1750616904865,18.74094637,130.76,130.74,18.64964886]
[1750616906286,0.7,130.78,130.72,51.22094637]
[1750616906287,18.74094637,130.75,130.72,18.64964886]
[1750616906664,174.8,130.8,130.72,37.39059523]
[1750616906866,18.74094637,130.79,130.75,37.39059523]
[1750616907163,18.74094637,130.81,130.77,18.74094637]
[1750616907370,18.74094637,130.8,130.77,18.64964886]
[1750616907585,18.74094637,130.79,130.77,18.64964886]
[1750616907787,18.74094637,130.79,130.76,18.64964886]
[1750616908291,18.74094637,130.8,130.76,26.29697119]
[1750616908502,18.74094637,130.79,130.76,18.64964886]
[1750616909596,18.74094637,130.8,130.76,26.29723273]
[1750616910589,33.063,130.82,130.76,26.29723273]
[1750616910590,18.74094637,130.79,130.76,26.29723273]
[1750616911091,33.063,130.82,130.76,26.29723273]
[1750616911404,18.74094637,130.81,130.77,18.74094637]
[1750616911575,18.74094637,130.81,130.76,45.0381791]
[1750616911775,18.74094637,130.81,130.76,52.4781791]
[1750616913597,18.74094637,130.8,130.76,52.4781791]
[1750616914096,18.74094637,130.81,130.76,52.4781791]
[1750616915292,18.74094637,130.79,130.76,33.73723273]
[1750616916592,18.74094637,130.77,130.76,26.08964886]
[1750616917177,18.74094637,130.77,130.74,18.64964886]
[1750616918313,18.74094637,130.75,130.72,18.64964886]
[1750616918595,18.74094637,130.74,130.72,18.64964886]
[1750616919173,18.74094637,130.73,130.71,18.64964886]
[1750616920697,18.74094637,130.72,130.71,18.64964886]
[1750616921979,18.74094637,130.73,130.71,18.64964886]
[1750616922689,18.74094637,130.72,130.71,18.64964886]
[1750616924393,13.00800239,130.72,130.71,18.64964886]